bitfinex/quotes_ETHUSD_20251010
["timestamp","ask_amount","ask_price","bid_price","bid_amount"]
[1760117747188,10.75122309,4112.5,4112.4,1e-08]
[1760117747505,40.75122309,4112.5,4112.4,1e-08]
[1760117748489,8.83122309,4112.5,4112.4,1e-08]
[1760117748711,10.75110587,4112.5,4112.4,1e-08]
[1760117750113,34.97910587,4112.5,4112.4,1e-08]
[1760117750316,10.75110587,4112.5,4112.4,1e-08]
[1760117750614,40.75110587,4112.5,4112.4,1e-08]
[1760117750983,43.31710587,4112.5,4112.4,1e-08]
[1760117752014,43.97149756,4112.5,4112.4,1e-08]
[1760117753216,37.54510587,4112.5,4112.4,1e-08]
[1760117753422,28.16110587,4112.5,4112.4,1e-08]
[1760117754282,4.97910587,4112.5,4112.4,1e-08]
[1760117754497,10.75110587,4112.5,4112.4,1e-08]
[1760117755523,10.64680587,4112.5,4112.4,1e-08]
[1760117757153,11.30087517,4112.5,4112.4,1e-08]
[1760117757454,11.40517517,4112.5,4112.4,1e-08]
[1760117757747,11.40527667,4112.5,4112.4,1e-08]
[1760117757914,8.86936573,4112.5,4112.4,1e-08]
[1760117758119,10.64680587,4112.5,4112.4,1e-08]
[1760117758314,11.30097667,4112.5,4112.4,1e-08]
[1760117758522,11.40527667,4112.5,4112.4,1e-08]
[1760117758721,10.75110587,4112.5,4112.4,1e-08]
[1760117761150,41.62538072,4112.5,4112.4,1e-08]
[1760117761732,2.43167007,4112.4,4112.3,0.002]
[1760117761935,37.560665,4112.4,4112.3,0.002]
[1760117762136,37.664965,4112.4,4112.3,0.002]
[1760117762752,37.664965,4112.4,4109.6,0.4579]
[1760117762753,4.485,4111.8,4109.6,0.4579]
[1760117762953,54.74755737,4111.7,4109.6,0.4579]
[1760117763120,54.74755737,4111.7,4111.3,1e-08]
[1760117763121,36.91726151,4111.4,4111.3,1e-08]
[1760117763321,36.91732067,4111.3,4109.0,0.002]
[1760117763524,36.91732067,4111.3,4109.0,0.48423682]
[1760117763525,37.5460156,4111.3,4109.0,0.48423682]
[1760117763822,20.7530156,4111.3,4109.4,0.4579]
[1760117764043,12.06398441,4111.3,4109.7,0.4579]
[1760117764245,10.7530156,4111.3,4109.7,0.4579]
[1760117764552,10.7530156,4111.3,4109.8,3.09112547]
[1760117764754,10.7530156,4111.3,4109.8,0.6336]
[1760117764929,11.62707569,4111.3,4109.9,14.5]
[1760117765551,40.7530156,4111.3,4109.9,14.5]
[1760117766138,43.3180156,4111.3,4109.5,0.002]
[1760117766636,37.5460156,4111.3,4109.5,0.002]
[1760117766846,10.7530156,4111.3,4109.5,2.91760732]
[1760117767137,12.06413456,4111.3,4109.9,2.43309282]
[1760117767383,12.06413456,4111.3,4110.0,2.43308032]
[1760117767384,10.7530156,4111.3,4110.0,2.43308032]
[1760117767860,10.7530156,4111.3,4110.1,2.43302283]
[1760117768064,11.62692787,4111.3,4110.0,2.43308178]
[1760117768269,11.62692787,4111.3,4109.8,0.6336]
[1760117768439,10.7530156,4111.3,4109.8,0.6336]
[1760117768636,10.7530156,4111.3,4111.1,0.002]
[1760117768637,49.19413456,4111.3,4111.1,0.002]
[1760117768843,44.35237984,4111.2,4111.1,1e-08]
[1760117769164,34.87557477,4111.2,4111.1,1e-08]
[1760117769374,34.98107477,4111.2,4111.1,1e-08]
[1760117769939,4.98107477,4111.2,4111.1,1e-08]
[1760117770139,50.75407477,4111.2,4111.1,1e-08]
[1760117770339,40.75407477,4111.2,4111.1,1e-08]
[1760117770772,14.60741925,4111.2,4111.1,1e-08]
[1760117771073,10.75407477,4111.2,4111.1,1e-08]
[1760117771314,11.62741925,4111.2,4111.1,1e-08]
[1760117771469,4.98107477,4111.2,4111.1,1e-08]
[1760117771808,10.75407477,4111.2,4111.1,1e-08]
[1760117772864,7.00807477,4111.2,4111.1,1e-08]
[1760117773060,11.30337906,4111.2,4111.1,1e-08]
[1760117773254,9.38337906,4111.2,4111.1,1e-08]
[1760117773459,8.83407477,4111.2,4111.1,1e-08]
[1760117773690,10.64857477,4111.2,4111.1,1e-08]
[1760117774060,17.77857477,4111.2,4111.1,1e-08]
[1760117775069,15.34619493,4111.2,4111.1,1e-08]
[1760117775483,8.21619493,4111.2,4111.1,1e-08]
[1760117775893,7.693,4111.2,4111.1,1e-08]
[1760117776274,8.21674353,4111.2,4111.1,1e-08]
[1760117776876,7.693,4111.2,4111.1,1e-08]
[1760117777560,10.77082478,4111.2,4111.1,1e-08]
[1760117777762,10.88572478,4111.2,4111.1,1e-08]
[1760117777979,8.33844494,4111.2,4111.1,1e-08]
[1760117778180,10.77082478,4111.2,4111.1,1e-08]
[1760117778393,10.88572478,4111.2,4111.1,1e-08]
[1760117778981,41.54049057,4111.2,4111.1,1e-08]
[1760117779180,40.88572478,4111.2,4111.1,1e-08]
[1760117780195,41.75906926,4111.2,4111.1,1e-08]
[1760117781285,40.88572478,4111.2,4111.1,1e-08]
[1760117783617,43.45072478,4111.2,4111.1,1e-08]
[1760117783908,13.89032684,4109.6,4108.6,0.002]
[1760117784199,10.64917178,4109.6,4108.6,0.002]
[1760117784422,10.77267178,4109.6,4108.6,0.002]
[1760117784578,10.77266988,4109.6,4108.6,0.002]
[1760117784783,11.42747368,4109.6,4108.6,0.002]
[1760117785005,41.42747368,4109.6,4108.6,0.002]
[1760117785208,41.6462924,4109.6,4108.6,0.002]
[1760117785767,40.77266988,4109.6,4108.6,0.002]
[1760117786421,42.08106831,4109.6,4108.6,0.002]
[1760117788822,40.77266988,4109.6,4108.6,0.002]
[1760117789232,60.24259954,4109.6,4108.6,0.002]
[1760117790140,35.00066988,4109.6,4108.6,0.002]
[1760117790291,15.73366988,4109.6,4108.6,0.002]
[1760117790718,17.04087028,4109.6,4108.6,0.002]
[1760117791099,40.77466988,4109.6,4108.6,0.002]
[1760117792192,40.77372977,4109.6,4108.6,0.002]
[1760117792609,19.17872977,4109.6,4108.6,0.002]
[1760117792808,24.95272977,4109.6,4108.6,0.002]
[1760117792993,10.16056684,4109.6,4108.6,0.002]
[1760117793213,8.85372977,4109.6,4108.6,0.002]
[1760117793525,10.77372977,4109.6,4108.6,0.002]
[1760117793749,11.42697789,4109.6,4108.6,0.002]
[1760117794420,10.77372977,4109.6,4108.6,0.002]
[1760117794633,40.77372977,4109.6,4108.6,0.002]
[1760117794833,41.6448745,4109.6,4108.6,0.002]
[1760117795039,40.77372977,4109.6,4108.6,0.002]
[1760117795359,4.39240293,4109.6,4108.6,0.002]
[1760117795557,8.85372977,4109.6,4108.6,0.002]
[1760117795768,8.73022977,4109.6,4108.7,0.6336]
[1760117795972,10.77372977,4109.6,4108.7,0.6336]
[1760117796824,10.65022977,4109.6,4108.6,0.6356]
[1760117797047,10.77372977,4109.6,4108.6,0.6356]
[1760117797254,10.77372977,4109.6,4108.6,0.002]
[1760117797484,41.42694773,4109.6,4108.6,0.002]
[1760117797953,41.6448745,4109.6,4108.6,0.002]
[1760117798660,40.77372977,4109.6,4108.6,0.002]
[1760117798959,41.6448745,4109.6,4108.6,0.002]
[1760117799157,40.77372977,4109.6,4108.6,0.002]
[1760117799538,10.77372977,4109.6,4108.6,0.002]
[1760117799739,15.91972977,4109.6,4108.6,0.002]
[1760117799940,7.89862579,4109.6,4108.6,0.002]
[1760117800152,5.65284664,4109.6,4108.6,0.002]
[1760117800451,11.42684664,4109.6,4108.6,0.002]
[1760117800764,40.77372977,4109.6,4108.6,0.002]
[1760117801763,10.77372977,4109.6,4108.6,0.002]
[1760117801970,6.31240293,4109.6,4108.6,0.002]
[1760117802173,11.42687292,4109.6,4108.6,0.002]
[1760117802497,10.77372977,4109.6,4108.6,0.002]
[1760117802858,41.64462579,4109.6,4108.6,0.002]
[1760117803088,10.77372977,4109.6,4108.6,0.002]
[1760117803455,28.37772977,4109.6,4108.6,0.002]
[1760117803657,41.64492027,4109.6,4108.6,0.002]
[1760117803990,42.08056684,4109.6,4108.6,0.002]
[1760117804162,33.93972977,4109.6,4108.6,0.002]
[1760117804358,35.24656684,4109.6,4108.6,0.002]
[1760117804876,40.77372977,4109.6,4108.6,0.002]
[1760117805061,42.08080261,4109.6,4108.6,0.002]
[1760117805261,19.91272977,4109.6,4108.6,0.002]
[1760117805894,43.33872977,4109.6,4108.6,0.002]
[1760117806467,27.45272977,4109.6,4108.6,0.002]
[1760117806692,27.27780449,4109.6,4108.6,0.002]
[1760117806866,25.97072977,4109.6,4108.6,0.002]
[1760117807066,27.27880021,4109.6,4108.6,0.002]
[1760117807264,25.97072977,4109.6,4108.6,0.002]
[1760117807463,32.43362293,4109.1,4108.6,0.002]
[1760117807800,16.77152586,4109.1,4108.6,0.002]
[1760117807961,17.76767393,4109.1,4108.6,0.002]
[1760117808397,9.49577734,4109.1,4108.6,0.002]
[1760117808772,8.74602586,4109.1,4108.6,0.002]
[1760117808975,8.62252586,4109.1,4108.6,0.002]
[1760117809171,2.44290293,4109.1,4108.6,0.002]
[1760117809405,8.74412586,4109.1,4108.7,0.6336]
[1760117809720,6.31050293,4109.1,4108.8,0.024338]
[1760117809878,0.52290293,4109.1,4109.0,3.55921898]
[1760117810077,0.52290293,4109.7,4109.1,3.06717135]
[1760117810307,0.52290293,4109.7,4109.0,3.17482803]
[1760117810308,0.52290293,4109.6,4109.5,2.43338605]
[1760117810604,0.87325148,4110.3,4109.6,3.06691037]
[1760117810605,4.26890293,4109.9,4109.6,3.06691037]
[1760117810915,2.68323852,4110.5,4109.8,3.06680842]
[1760117811221,2.68323852,4110.5,4109.1,2.43357543]
[1760117811222,0.52418701,4110.4,4109.9,1.12353149]
[1760117811386,2.577,4110.4,4110.3,0.2247]
[1760117811588,3.746,4110.5,4110.4,0.6336]
[1760117811782,4.27018701,4110.5,4110.4,15.1336]
[1760117811992,4.27018701,4110.5,4110.4,14.5]
[1760117812286,4.27018701,4110.5,4109.1,3.746]
[1760117812287,1.92,4110.4,4108.8,3.06736019]
[1760117812473,1.92,4110.2,4109.2,0.6336]
[1760117812677,4.27018701,4110.1,4109.4,0.6336]
[1760117812872,0.52418701,4110.0,4109.4,0.65793445]
[1760117813191,1.92,4110.2,4109.2,0.6336]
[1760117813192,6.70334139,4109.9,4109.2,0.6336]
[1760117813394,4.27018701,4109.8,4109.2,0.6336]
[1760117813716,3.746,4109.7,4109.4,0.6336]
[1760117814010,3.746,4109.7,4109.3,0.6336]
[1760117814506,3.746,4109.7,4109.5,0.6336]
[1760117814900,3.746,4109.7,4109.2,0.6336]
[1760117815089,3.746,4109.7,4109.3,0.4656]
[1760117815412,2.2562,4109.6,4109.3,14.5]
[1760117815722,4.35344527,4109.4,4109.3,14.5]
[1760117816008,8.62347933,4109.4,4109.3,14.5]
[1760117816346,5.666,4109.4,4109.3,15.1336]
[1760117816628,3.746,4109.4,4109.3,17.15932]
[1760117818028,3.745,4109.6,4109.4,0.6336]
[1760117818223,3.745,4109.6,4109.5,1.0992]
[1760117819306,3.745,4110.6,4110.3,0.6336]
[1760117819515,0.65523852,4111.6,4110.5,0.6336]
[1760117819699,3.745,4111.5,4110.6,1.0992]
[1760117819899,1.92,4111.3,4110.8,0.6336]
[1760117820099,3.745,4111.2,4110.8,0.6336]
[1760117820518,3.745,4111.2,4110.1,0.2247]
[1760117820519,2.55426108,4110.8,4110.1,0.7552]
[1760117820720,0.001,4110.6,4110.3,0.6336]
[1760117821121,0.001,4110.6,4110.4,0.4656]
[1760117821442,0.001,4110.6,4110.5,3.06639406]
[1760117821601,0.001,4110.6,4110.5,17.68799406]
[1760117821801,0.001,4110.6,4110.5,18.15359406]
[1760117822020,0.001,4110.6,4110.5,20.52390825]
[1760117822548,0.001,4110.6,4110.5,17.62551419]
[1760117822837,0.001,4110.6,4110.5,15.1336]
[1760117823854,0.001,4110.6,4110.5,15.5992]
[1760117826169,7.131,4110.6,4110.5,18.03199406]
[1760117826468,7.131,4110.6,4110.5,18.15359406]
[1760117826665,7.131,4110.6,4110.5,15.7208]
[1760117826865,7.131,4110.6,4110.5,17.35962579]
[1760117827069,7.131,4110.6,4110.5,19.79241985]
[1760117827240,7.131,4110.6,4110.5,0.7552]
[1760117827431,7.131,4110.6,4110.1,0.1216]
[1760117827630,7.131,4110.6,4110.2,2.43294611]
[1760117827958,7.131,4110.6,4110.5,15.1336]
[1760117828735,7.131,4110.6,4110.5,18.03199406]
[1760117828936,7.131,4110.6,4110.5,20.20008465]
[1760117832185,7.131,4110.6,4110.5,23.94408465]
[1760117833006,7.131,4110.6,4110.5,23.31048465]
[1760117833218,7.131,4110.6,4110.5,23.94408465]
[1760117833863,7.131,4110.6,4110.5,20.20008465]
[1760117834195,7.131,4110.6,4110.5,21.89659406]
[1760117834386,7.131,4110.6,4110.5,19.4638]
[1760117834694,7.131,4110.6,4110.5,14.5]
[1760117834897,7.131,4110.6,4110.5,15.1336]
[1760117836170,7.131,4110.6,4110.5,15.5814]
[1760117836491,7.131,4110.6,4110.5,14.9478]
[1760117836691,7.131,4110.6,4110.5,18.01419406]
[1760117836894,7.131,4110.6,4110.5,23.25847911]
[1760117837098,7.131,4110.6,4110.5,23.38007911]
[1760117837461,7.131,4110.6,4110.5,25.30007911]
[1760117837663,0.001,4111.0,4110.9,4.98615734]
[1760117837895,7.13,4112.1,4112.0,3.06550661]
[1760117838097,7.131,4112.5,4112.3,2.43170059]
[1760117838398,7.131,4112.5,4112.4,17.37947007]
[1760117838581,7.131,4112.5,4112.4,15.0686]
[1760117839003,7.131,4112.5,4112.4,14.6208]
[1760117839204,7.131,4112.5,4112.4,14.5]
[1760117839405,7.65402624,4112.5,4112.4,14.5]
[1760117840008,7.6540418,4112.5,4112.4,14.5]
[1760117840305,7.131,4112.5,4112.4,14.5]
[1760117840506,7.65396646,4112.5,4112.4,14.5]
[1760117841040,7.131,4112.5,4112.4,18.01307007]
[1760117841189,7.131,4112.5,4112.4,17.95171419]
[1760117841388,7.131,4112.5,4112.4,20.38338426]
[1760117842216,7.131,4112.5,4112.4,17.95171419]
[1760117842630,7.131,4112.5,4112.4,20.38338426]
[1760117842890,0.001,4112.5,4112.4,20.38338426]
[1760117844222,0.001,4112.5,4112.4,17.95171419]
[1760117844426,0.001,4112.5,4112.4,15.1336]
[1760117844627,0.001,4112.5,4112.4,14.5]
[1760117844922,0.001,4112.5,4112.4,15.1336]
[1760117845731,0.001,4112.5,4112.4,19.3234]
[1760117846294,0.001,4112.5,4112.4,15.1336]
[1760117846522,0.001,4112.5,4112.4,18.8756]
[1760117846718,0.1271,4112.5,4112.4,14.5]
[1760117846949,3.12646158,4112.5,4111.2,0.4478]
[1760117847159,0.52220867,4112.4,4111.0,2.43249029]
[1760117847457,4.91758754,4112.3,4111.5,14.5]
[1760117847639,4.91758754,4112.3,4111.6,3.5828]
[1760117847640,2.44220867,4112.2,4111.6,3.5828]
[1760117847833,0.52220867,4112.1,4111.6,3.5828]
[1760117848032,0.52220867,4112.1,4111.7,1.0814]
[1760117848242,0.52220867,4112.1,4111.6,7.3754119]
[1760117848243,2.44220867,4112.4,4111.9,0.6336]
[1760117848416,2.44220867,4112.4,4111.5,14.5]
[1760117848417,0.52220867,4112.3,4111.5,14.5]
[1760117848621,2.43187897,4112.1,4111.5,14.5]
[1760117848850,0.52220867,4112.1,4111.6,0.6336]
[1760117849052,0.1208,4112.3,4111.7,0.47212084]
[1760117849228,0.52268432,4112.2,4111.8,4.3756]
[1760117849425,0.1208,4112.3,4112.0,0.6336]
[1760117849679,0.52287339,4112.2,4112.0,0.6336]
[1760117849969,0.1208,4112.3,4111.5,14.5]
[1760117849970,2.43208405,4111.7,4111.5,14.5]
[1760117850127,2.43213929,4111.7,4111.5,14.5]
[1760117850323,3.741,4111.8,4111.5,14.5]
[1760117850324,2.95517207,4111.6,4111.5,14.5]
[1760117850541,2.43236513,4111.3,4110.7,0.1216]
[1760117850745,0.1216,4111.0,4109.8,0.4478]
[1760117850923,0.1216,4111.0,4110.3,0.1216]
[1760117850924,4.26402887,4110.9,4110.3,0.1216]
[1760117851255,0.52302887,4110.8,4110.3,3.8626]
[1760117851562,0.52302887,4110.8,4110.4,0.4083]
[1760117851872,0.52302887,4110.8,4110.3,3.8626]
[1760117851873,0.52306352,4110.8,4110.5,14.5]
[1760117852058,0.52306352,4110.8,4110.6,0.6336]
[1760117852369,3.741,4110.9,4110.5,14.5]
[1760117852571,3.741,4110.9,4110.5,14.9478]
[1760117853128,3.741,4110.9,4110.6,0.65792734]
[1760117853328,0.65337887,4111.5,4110.8,0.6336]
[1760117853528,0.1216,4111.4,4110.9,0.02432557]
[1760117853730,0.64460098,4111.4,4111.1,0.6336]
[1760117853959,3.742,4111.5,4111.1,0.6336]
[1760117855129,2.55368455,4111.7,4111.3,0.6336]
[1760117855329,0.52305462,4111.6,4111.3,0.6336]
[1760117855528,0.52305462,4111.6,4111.1,0.6336]
[1760117855758,2.432439,4111.1,4111.0,0.002]
[1760117856029,12.00549362,4111.1,4111.0,0.002]
[1760117856229,11.6266451,4111.1,4111.0,0.002]
[1760117856435,8.72639362,4111.1,4111.0,0.002]
[1760117856676,10.75339362,4111.1,4111.0,0.002]
[1760117856833,12.01441322,4111.1,4111.0,0.002]
[1760117857172,41.14116174,4111.1,4111.0,0.002]
[1760117858476,49.79927253,4110.6,4110.5,1e-08]
[1760117858633,34.71532715,4110.6,4110.5,1e-08]
[1760117858834,35.69591261,4110.6,4110.5,1e-08]
[1760117859034,35.29659261,4110.6,4110.5,1e-08]
[1760117859235,36.60410146,4110.6,4110.5,1e-08]
[1760117859435,35.29659261,4110.6,4110.5,1e-08]
[1760117860535,36.60410146,4110.6,4110.5,1e-08]
[1760117860736,35.29659261,4110.6,4110.5,1e-08]
[1760117860936,36.60410146,4110.6,4110.5,1e-08]
[1760117861173,57.87310146,4110.6,4110.5,1e-08]
[1760117861496,32.43297163,4110.2,4110.1,0.002]
[1760117861632,47.77502625,4110.2,4110.1,0.002]
[1760117861832,34.35332684,4109.6,4109.1,0.002]
[1760117862035,25.98491911,4109.6,4109.1,0.002]
[1760117862267,56.09491911,4109.6,4109.1,0.002]
[1760117862481,58.08972314,4109.6,4109.1,0.002]
[1760117862653,30.0,4109.4,4109.1,1e-08]
[1760117862868,26.56728457,4109.6,4109.1,1e-08]
[1760117862869,34.35356371,4109.2,4109.1,1e-08]
[1760117863083,38.61861833,4109.2,4109.1,1e-08]
[1760117863399,38.72861833,4109.2,4109.1,1e-08]
[1760117863563,2.43385985,4108.7,4108.3,0.002]
[1760117863883,55.4623975,4108.7,4108.3,0.002]
[1760117864082,26.09545212,4108.7,4108.3,0.002]
[1760117864398,56.09545212,4108.7,4108.3,0.002]
[1760117865765,58.12445212,4108.7,4108.3,0.002]
[1760117865954,58.59681758,4108.7,4108.3,0.002]
[1760117866155,52.82581758,4108.7,4108.3,0.002]
[1760117866377,34.98691447,4108.7,4108.3,0.002]
[1760117866581,40.23485985,4108.7,4108.3,0.002]
[1760117867055,15.08458961,4108.7,4108.3,0.002]
[1760117867387,58.12112726,4108.7,4108.3,0.002]
[1760117868055,32.43427458,4108.0,4107.7,0.002]
[1760117868380,55.46381223,4108.0,4107.7,0.002]
[1760117868582,56.09291983,4108.0,4107.7,0.002]
[1760117869373,58.12091983,4108.0,4107.7,0.002]
[1760117869565,52.34991983,4108.0,4107.7,0.002]
[1760117869768,58.12091983,4108.0,4107.7,0.002]
[1760117870390,33.20191983,4108.0,4107.7,0.002]
[1760117870681,38.97391983,4108.0,4107.7,0.002]
[1760117871054,44.35433384,4107.9,4107.8,1e-08]
[1760117871384,35.08994144,4107.9,4107.8,1e-08]
[1760117871688,35.20184144,4107.9,4107.8,1e-08]
[1760117871981,13.47173384,4107.9,4107.8,1e-08]
[1760117872485,40.45473384,4107.9,4107.8,1e-08]
[1760117873066,40.45473384,4107.9,4107.7,0.002]
[1760117873067,40.97307532,4107.9,4107.7,0.002]
[1760117873396,40.97307532,4107.9,4105.1,2.4359765]
[1760117873397,1.92,4106.7,4105.1,2.4359765]
[1760117873601,1.92,4106.5,4104.8,0.463]
[1760117873801,2.43551374,4106.0,4105.5,14.5]
[1760117873983,0.64814919,4107.6,4105.6,0.32288662]
[1760117874294,0.1119,4107.7,4106.7,0.6336]
[1760117874493,3.949,4107.5,4106.7,0.6336]
[1760117874790,1.92,4107.3,4106.8,14.5]
[1760117875288,2.43487198,4107.0,4106.8,14.5]
[1760117875475,3.744,4106.9,4106.8,14.5]
[1760117876198,1.92,4107.5,4106.8,17.10996]
[1760117876397,2.43445483,4107.7,4106.9,0.65794926]
[1760117876398,2.029,4107.7,4106.9,0.65794926]
[1760117876554,3.748,4107.6,4106.9,3.55586977]
[1760117876756,6.18252014,4107.6,4106.9,1.12094926]
[1760117876998,2.43458479,4107.5,4106.9,1.0966]
[1760117877156,3.748,4107.4,4107.1,0.6336]
[1760117877557,2.43453236,4107.6,4107.1,0.6336]
[1760117877752,0.51932167,4108.0,4107.3,0.6336]
[1760117877992,0.1216,4108.2,4107.5,0.1216]
[1760117878195,0.51932167,4109.0,4107.3,0.6336]
[1760117878196,2.029,4109.0,4108.2,0.6336]
[1760117878367,2.029,4109.0,4108.4,0.6336]
[1760117878368,3.748,4108.9,4108.4,0.6336]
[1760117878566,6.18175255,4108.9,4108.4,0.6336]
[1760117878876,3.748,4108.9,4108.2,0.6336]
[1760117879056,0.64814919,4109.5,4108.3,0.463]
[1760117879257,2.029,4109.6,4109.0,0.6336]
[1760117879486,3.751,4109.5,4109.2,0.6336]
[1760117879793,3.751,4109.5,4109.4,3.06704527]
[1760117880095,3.751,4109.5,4109.4,15.5966]
[1760117880255,3.751,4110.0,4109.4,15.5966]
[1760117880464,2.43338605,4109.5,4109.4,14.5]
[1760117880721,2.029,4110.2,4109.4,15.1336]
[1760117880722,2.43320842,4109.8,4109.4,15.1336]
[1760117880858,3.75,4109.8,4109.4,15.5966]
[1760117881511,0.1149,4110.8,4109.5,1.12093386]
[1760117881512,0.64814919,4110.4,4109.5,1.12093386]
[1760117881683,6.2993496,4110.3,4109.5,0.65793386]
[1760117881893,2.43338605,4109.5,4109.4,14.5]
[1760117882203,3.749,4109.5,4109.4,15.1336]
[1760117882689,3.751,4109.5,4109.4,14.5]
[1760117882901,4.27158995,4109.5,4109.4,14.5]
[1760117883218,7.030476,4109.5,4109.4,14.5]
[1760117883573,4.27158995,4109.5,4109.4,14.5]
[1760117883802,0.52058995,4109.5,4109.4,14.5]
[1760117884080,2.44058995,4109.8,4109.5,0.6336]
[1760117884235,3.749,4109.7,4109.5,0.6336]
[1760117884390,0.52058995,4109.6,4109.4,14.5]
[1760117884730,0.52058995,4109.5,4109.4,14.5]
[1760117885281,2.953976,4109.5,4109.4,14.5]
[1760117885726,0.52058995,4109.5,4109.4,14.5]
[1760117885884,7.65058995,4109.5,4109.4,14.5]
[1760117886088,11.39958995,4109.5,4109.4,14.5]
[1760117886490,13.832976,4109.5,4109.4,14.5]
[1760117886709,7.65058995,4109.5,4109.4,14.5]
[1760117887010,2.43350448,4109.3,4107.9,0.463]
[1760117887332,1.92,4109.4,4108.0,14.5]
[1760117887333,0.65248016,4108.8,4108.0,14.5]
[1760117887532,4.28758995,4108.7,4108.0,14.5]
[1760117887865,0.52058995,4108.6,4108.0,14.5]
[1760117888012,0.65248016,4108.4,4108.0,14.5]
[1760117888192,2.0416,4108.2,4108.0,14.5]
[1760117888390,0.52058995,4108.1,4108.0,14.5]
[1760117888788,3.60728544,4108.1,4108.0,14.5]
[1760117889032,1.17307011,4108.1,4108.0,14.5]
[1760117889321,3.06700528,4108.1,4108.0,14.5]
[1760117889492,4.28658995,4108.1,4108.0,14.5]
[1760117889686,1.17383545,4108.1,4108.0,14.5]
[1760117889921,4.28658995,4108.1,4108.0,14.5]
[1760117890222,4.93983545,4108.1,4108.0,14.5]
[1760117890622,4.28658995,4108.1,4108.0,14.5]
[1760117891668,4.28658995,4108.1,4108.0,14.963]
[1760117891845,6.72080528,4108.1,4108.0,14.5]
[1760117892022,6.83300528,4108.1,4108.0,14.5]
[1760117892351,6.95460528,4108.1,4108.0,14.5]
[1760117892757,2.43433384,4107.9,4107.8,0.002]
[1760117893055,9.61789734,4107.9,4107.8,0.002]
[1760117893232,10.78012379,4107.9,4107.8,0.002]
[1760117894757,11.54036179,4107.9,4107.8,0.002]
[1760117895056,11.54037299,4107.9,4107.8,0.002]
[1760117895368,12.08608412,4107.9,4107.8,0.002]
[1760117895525,10.78112379,4107.9,4107.8,0.002]
[1760117896139,4.98712379,4107.9,4107.8,0.002]
[1760117896340,10.78112379,4107.9,4107.8,0.002]
[1760117896567,8.75112379,4107.9,4107.8,0.002]
[1760117896767,10.78012379,4107.9,4107.8,0.002]
[1760117897172,4.98712379,4107.9,4107.8,0.002]
[1760117897390,10.78012379,4107.9,4107.8,0.002]
[1760117899468,2.43463017,4107.4,4107.3,0.002]
[1760117899633,9.9448252,4107.4,4107.3,0.002]
[1760117899837,1.92,4107.3,4105.0,0.4642]
[1760117900042,2.43587315,4105.4,4104.5,0.6878]
[1760117900250,4.28258995,4105.3,4105.1,14.5]
[1760117900460,2.95652486,4105.2,4105.1,14.5]
[1760117900768,0.52058995,4105.2,4105.1,14.5]
[1760117902368,2.95652486,4105.2,4105.1,14.5]
[1760117902904,2.55598995,4105.2,4103.1,0.2313]
[1760117903038,1.92,4105.0,4103.6,0.4642]
[1760117903359,2.43670406,4104.0,4103.7,14.5]
[1760117903560,3.761,4103.9,4103.7,14.5]
[1760117903951,0.52190414,4103.8,4103.7,14.5]
[1760117904135,2.95867006,4103.8,4103.7,14.5]
[1760117904343,2.95805004,4103.8,4103.7,14.5]
[1760117904666,3.07345004,4103.8,4103.7,14.5]
[1760117904861,3.07345004,4103.8,4102.2,0.2313]
[1760117905062,2.43690762,4103.6,4102.2,3.9923]
[1760117905287,2.43710952,4103.3,4102.3,0.46801]
[1760117905580,3.76,4103.2,4102.4,14.5]
[1760117905882,3.76,4103.1,4102.6,2.43742819]
[1760117906042,3.76,4103.0,4102.7,0.4642]
[1760117906245,3.76,4102.9,4102.5,3.07113161]
[1760117906443,0.1154,4103.8,4102.7,0.6336]
[1760117906675,4.35690804,4103.6,4102.8,0.30710537]
[1760117906876,1.92,4103.6,4102.4,14.5]
[1760117907088,0.1302,4103.5,4102.4,14.5]
[1760117907389,2.43706285,4103.3,4102.4,14.5]
[1760117907784,3.761,4103.4,4102.6,2.43747605]
[1760117907985,1.92,4103.8,4102.8,2.43731364]
[1760117908206,1.92,4103.6,4102.9,3.07088751]
[1760117908506,3.76,4103.5,4102.9,0.6336]
[1760117908709,3.76,4103.5,4103.0,14.5]
[1760117908908,0.1302,4103.4,4103.0,14.5]
[1760117909211,2.56720894,4103.4,4103.0,14.5]
[1760117909417,0.1216,4103.2,4103.0,14.5]
[1760117909708,3.76,4103.1,4103.0,14.5]
[1760117909911,0.1216,4103.2,4103.0,14.5]
[1760117910080,3.76,4103.1,4103.0,14.5]
[1760117910677,3.759,4103.1,4103.0,14.5]
[1760117910879,3.759,4103.1,4103.0,15.99662]
[1760117911079,3.759,4103.1,4103.0,16.46082]
[1760117911478,3.759,4103.1,4103.0,15.99662]
[1760117911723,3.759,4103.1,4103.0,14.5]
[1760117912012,6.19618164,4103.1,4103.0,14.5]
[1760117912311,2.43730044,4102.9,4102.8,0.002]
[1760117912678,2.56750044,4102.9,4102.8,0.002]
[1760117912928,4.35724104,4103.0,4102.8,0.002]
[1760117912929,1.92,4103.0,4102.8,0.002]
[1760117913110,2.43730044,4102.9,4102.8,0.002]
[1760117913501,2.57393551,4103.9,4102.8,0.002]
[1760117913702,3.758,4103.8,4102.8,0.002]
[1760117913896,0.5184811,4103.7,4102.8,0.002]
[1760117914089,0.2154,4104.5,4102.8,0.002]
[1760117914090,2.03,4104.2,4103.4,2.43696073]
[1760117914312,1.624,4104.1,4103.5,2.46131257]
[1760117914513,0.65393551,4105.1,4103.7,0.6336]
[1760117914741,5.789,4105.0,4103.9,0.6336]
[1760117914942,0.131,4105.3,4104.0,0.02436647]